fUST/lending_fUST_20240102
["ID","MTS","AMOUNT","RATE_DAILY","PERIOD"]
[309814280,1704163843070,-500.0,0.0004178,7]
[309814281,1704163843079,-500.0,0.0004178,7]
[309814282,1704163843089,-500.0,0.0004178,7]
[309814283,1704163843098,-1650.02,0.0004178,7]
[309814284,1704163843107,-500.0,0.0004178,7]
[309814285,1704163843116,-685.82,0.0004178,7]
[309814286,1704163843125,-500.0,0.0004178,7]
[309814287,1704163843135,-500.0,0.0004178,7]
[309814289,1704163843144,-500.0,0.0004178,7]
[309814291,1704163843154,-36681.74,0.0004178,3]
[309814293,1704163843163,-517.91,0.0004178,7]
[309814295,1704163843171,-500.0,0.0004178,7]
[309814297,1704163843180,-6631.91,0.0004178,7]
[309814299,1704163843190,-2667.54,0.0004178,7]
[309814302,1704163843200,-500.0,0.0004178,7]
[309814305,1704163843208,-500.0,0.0004178,7]
[309814308,1704163843218,-500.0,0.0004178,7]
[309814311,1704163843227,-497.87121471,0.0004178,7]
[309814314,1704163843236,-500.0,0.0004178,7]
[309814316,1704163843246,-500.0,0.0004178,7]
[309814319,1704163843255,-2669.87,0.0004178,7]
[309814322,1704163843265,-3154.38,0.0004178,7]
[309814325,1704163843274,-1695.21,0.0004178,7]
[309814328,1704163843283,-500.0,0.0004178,7]
[309814330,1704163843292,-500.0,0.00041917,7]
[309814332,1704163843302,-500.0,0.00041917,7]
[309814334,1704163843311,-500.0,0.00041917,7]
[309814336,1704163843319,-500.0,0.00041917,7]
[309814338,1704163843329,-812.67,0.00041917,7]
[309814341,1704163843338,-242.4554599,0.00041917,7]
[309814343,1704163843348,-708.7,0.00041917,7]
[309814345,1704163843357,-1597.09,0.00041917,7]
[309814347,1704163843366,-2435.28,0.00041917,7]
[309814349,1704163843375,-500.0,0.00041917,7]
[309814351,1704163843384,-1650.02,0.00041917,7]
[309814352,1704163843394,-685.82,0.00041917,7]
[309814354,1704163843403,-500.0,0.00041917,7]
[309814355,1704163843413,-558.58932103,0.00041917,7]
[309814356,1704163843422,-500.0,0.00041917,7]
[309814357,1704163843432,-36681.74,0.00041917,3]
[309814358,1704163843441,-517.91,0.00041917,7]
[309814359,1704163843450,-6631.91,0.00041917,7]
[309814360,1704163843459,-2667.54,0.00041917,7]
[309814361,1704163843469,-500.0,0.00041917,7]
[309814362,1704163843479,-500.0,0.00041917,7]
[309814363,1704163843489,-500.0,0.00041917,7]
[309814364,1704163843499,-500.0,0.00041917,7]
[309814365,1704163843508,-2669.87,0.00041917,7]
[309814366,1704163843517,-3154.38,0.00041917,7]
[309814367,1704163843526,-1695.21,0.00041917,7]
[309814368,1704163843536,-500.0,0.00041917,7]
[309814369,1704163843545,-200.0,0.00041968,2]
[309814370,1704163843554,-200.15021095,0.00042,7]
[309814371,1704163843564,-332.999999,0.00042,3]
[309814372,1704163843573,-18417.94235798,0.00042,15]
[309814373,1704163843582,-1049.67742489,0.00042,15]
[309814374,1704163843592,-1452.80209204,0.00042,10]
[309814375,1704163843601,-1969.87900778,0.00042,15]
[309814376,1704163843611,-349.95,0.00042051,2]
[309814377,1704163843620,-160.0,0.00042051,2]
[309814378,1704163843630,-250.0,0.00042051,2]
[309814379,1704163843641,-500.0,0.00042054,7]
[309814380,1704163843650,-500.0,0.00042054,7]
[309814382,1704163843730,-500.0,0.00042054,7]
[309814383,1704163843739,-500.0,0.00042054,7]
[309814385,1704163843749,-812.67,0.00042054,7]
[309814387,1704163843760,-708.7,0.00042054,7]
[309814388,1704163843770,-1597.09,0.00042054,7]
[309814390,1704163843782,-2435.28,0.00042054,7]
[309814392,1704163843792,-500.0,0.00042054,7]
[309814393,1704163843802,-1650.02,0.00042054,7]
[309814395,1704163843816,-685.82,0.00042054,7]
[309814396,1704163843828,-500.0,0.00042054,7]
[309814398,1704163843843,-500.0,0.00042054,7]
[309814400,1704163843853,-36681.74,0.00042054,3]
[309814402,1704163843862,-517.91,0.00042054,7]
[309814403,1704163843872,-6631.91,0.00042054,7]
[309814405,1704163843883,-2667.54,0.00042054,7]
[309814407,1704163843893,-500.0,0.00042054,7]
[309814408,1704163843903,-500.0,0.00042054,7]
[309814410,1704163843914,-500.0,0.00042054,7]
[309814411,1704163843924,-2082.08304183,0.00042054,7]
[309814413,1704163843939,-587.78695817,0.00042054,7]
[309814415,1704163843948,-3154.38,0.00042054,7]
[309814416,1704163843958,-1695.21,0.00042054,7]
[309814418,1704163843968,-500.0,0.00042054,7]
[309814419,1704163843979,-397.32914581,0.00042095,30]
[309814420,1704163843989,-258.42202806,0.00042095,30]
[309814421,1704163844002,-577.68716629,0.00042095,30]
[309814422,1704163844011,-155.28182379,0.00042114,4]
[309814423,1704163844020,-2000.0,0.00042148,2]
[309814424,1704163844030,-2000.0,0.00042148,2]
[309814425,1704163844039,-2178.65217296,0.0004219,2]
[309814426,1704163844049,-151.0,0.00042191,7]
[309814427,1704163844058,-151.0,0.00042191,7]
[309814428,1704163844067,-757.700634,0.00042191,7]
[309814429,1704163844076,-757.700634,0.00042191,7]
[309814430,1704163844085,-178.1239,0.00042191,7]
[309814431,1704163844095,-155.15701059,0.00042191,2]
[309814432,1704163844105,-3305.87379337,0.00042191,4]
[309814433,1704163844117,-2798.80336675,0.00042191,4]
[309814434,1704163844129,-4073.41560601,0.00042191,4]
[309814435,1704163844139,-33048.98476521,0.00042191,60]
[309814436,1704163844150,-48005.2001,0.00042191,60]
[309814437,1704163844162,-34137.40740533,0.00042191,60]
[309814438,1704163844174,-5003.40007295,0.00042191,60]
[309814479,1704163846963,-252.42325706,0.0003,4]
[309814480,1704163846972,-482.95423142,0.00041367,4]
[309814481,1704163846983,-2025.89489209,0.00041367,4]
[309814482,1704163846992,-420.95341957,0.00041367,4]
[309814483,1704163847002,-326.40546019,0.00041367,4]
[309814484,1704163847011,-538.48473388,0.00041368,4]
[309814485,1704163847916,268.43307789,0.0002,2]
[309814486,1704163857508,233.88671809,0.0001,2]
[309814487,1704163861826,735.08990401,0.0001,2]
[309814488,1704163870081,167.46256175,0.0001,2]
[309814490,1704163891356,687.71579816,0.00015,2]
[309814501,1704163987863,10263.52088897,0.00015,2]
[309814503,1704164009855,10263.52088897,0.00015,2]
[309814504,1704164025806,10263.52088897,0.00015,2]
[309814505,1704164045868,2549.0575041,0.00015,2]
[309814506,1704164066209,210.24928371,0.00022,2]
[309814513,1704164618556,174.607448,0.00021199,2]
[309814515,1704164622629,22726.74814965,0.00021473,2]
[309814516,1704164622655,2173.25185035,0.00021473,2]
[309814517,1704164658063,250.0,0.00021463,2]
[309814521,1704164705417,818.7328791,0.00021451,2]
[309814522,1704164743865,593.398811,0.00021537,2]
[309814523,1704164794967,189.8493633,0.00021918,2]
[309814524,1704164823510,154.86062544,0.00021537,2]
[309814525,1704164823792,154.86062544,0.00021918,2]
[309814526,1704164826112,154.86062544,0.00021537,2]
[309814527,1704164827855,15418.60665608,0.00021918,2]
[309814530,1704164839501,157.99517983,0.00021918,2]
[309814531,1704164843783,155.97877653,0.00021918,2]
[309814532,1704164844095,157.37938516,0.00021918,2]
[309814535,1704164883983,526.569364,0.00021197,2]
[309814538,1704164952153,-3057.74,0.00022076,3]
[309814539,1704164952175,-154.86062544,0.00022084,2]
[309814540,1704164952197,-264.55836507,0.00022084,2]
[309814541,1704164952220,-156.55866731,0.00022084,2]
[309814542,1704164952246,-285.22748665,0.00022085,2]
[309814543,1704164952269,-249.8882546,0.00022085,2]
[309814544,1704164952303,-154.86062544,0.00022085,2]
[309814545,1704164952332,-268.6781661,0.00022085,2]
[309814546,1704164952356,-235.2722466,0.00022085,2]
[309814547,1704164952379,-2026.57814012,0.00022085,2]
[309814548,1704164952403,-10473.05577926,0.00022085,2]
[309814549,1704164952426,-163.89682936,0.00022086,2]
[309814550,1704164952447,-2989.40003667,0.00022086,2]
[309814551,1704164952469,-4802.57442748,0.00022086,2]
[309814552,1704164952495,-1575.79265476,0.00022086,2]
[309814553,1704164952518,-2031.17478188,0.00022086,2]
[309814554,1704164952542,-32496.56676326,0.00022086,2]
[309814555,1704164959229,-360.09581363,0.00022082,2]
[309814556,1704164959254,-273.06003723,0.00022083,2]
[309814557,1704164959277,-154.86062544,0.00022083,2]
[309814558,1704164959300,-245.55855306,0.00022083,2]
[309814559,1704164959324,-271.41585341,0.00022083,2]
[309814560,1704164959347,-154.86062544,0.00022083,2]
[309814561,1704164959369,-675.69429378,0.00022083,2]
[309814562,1704164959389,-154.86062544,0.00022083,2]
[309814563,1704164959411,-3902.13958521,0.00022084,2]
[309814564,1704164959431,-4907.56129694,0.00022085,2]
[309814565,1704164959452,-13669.99879992,0.00022085,2]
[309814566,1704164959472,-45730.47995984,0.00022086,2]
[309814567,1704164959492,-154.86062544,0.00022087,2]
[309814568,1704164959512,-15852.35378489,0.00022087,2]
[309814569,1704164959532,-328.21739259,0.00022087,2]
[309814570,1704164959552,-170.11525091,0.00022087,2]
[309814571,1704164959572,-300.76052365,0.00022087,2]
[309814572,1704164959591,-4779.90873547,0.00022087,2]
[309814573,1704164959611,-3731.78532301,0.00022088,2]
[309814574,1704164959631,-154.86062544,0.00022088,2]
[309814575,1704164959750,-524.73174263,0.00022088,2]
[309814576,1704164959774,-1028.76933116,0.00022089,2]
[309814577,1704164959795,-300.68220091,0.00022089,2]
[309814578,1704164959815,-198.5260656,0.00022089,2]
[309814579,1704164959837,-176.24809374,0.00022089,2]
[309814580,1704164959858,-7930.22202784,0.00022089,2]
[309814581,1704164959878,-154.86062544,0.00022089,2]
[309814582,1704164959901,-413.39883265,0.0002209,2]
[309814583,1704164959922,-260.47439741,0.0002209,2]
[309814584,1704164959942,-1733.76705189,0.0002209,2]
[309814585,1704164959964,-177.42052585,0.00022092,2]
[309814586,1704164959994,-3669.28,0.00022177,3]
[309814587,1704164960014,-154.86062544,0.00022186,2]
[309814588,1704164960033,-1237.70128856,0.00022186,2]
[309814589,1704164960054,-160.83720431,0.00022187,2]
[309814590,1704164960075,-851.62044368,0.00022205,2]
[309814591,1704164960095,-155.40166656,0.00022337,2]
[309814592,1704164960115,-155.15889919,0.00022438,2]
[309814593,1704164960136,-486.57012986,0.00022438,7]
[309814594,1704164960155,-2096.37865301,0.00022438,2]
[309814595,1704164960175,-155.13179299,0.00022453,2]
[309814596,1704164960196,-1251.41734092,0.00022453,2]
[309814597,1704164960217,-406.76791682,0.00022453,2]
[309814598,1704164960238,-155.03277991,0.00022453,2]
[309814599,1704164960259,-453.26817428,0.00022453,2]
[309814600,1704164960279,-322.86935835,0.00022453,2]
[309814601,1704164960298,-577.09878801,0.00022453,2]
[309814602,1704164960317,-154.86062544,0.00022453,2]
[309814603,1704164960337,-157.92635778,0.00022453,2]
[309814604,1704164960357,-1362.66980997,0.00022453,2]
[309814605,1704164960376,-1161.50646297,0.00022453,5]
[309814606,1704164960395,-169.32640451,0.00022485,2]
[309814607,1704164960414,-416.5357141,0.00022491,2]
[309814608,1704164960435,-294.84794068,0.00023487,2]
[309814609,1704164960454,-255.28394121,0.00023487,2]
[309814610,1704164960474,-941.86125495,0.00023487,2]
[309814611,1704164960493,-155.25563182,0.00023487,2]
[309814612,1704164960513,-1007.62231098,0.00023487,2]
[309814613,1704164960532,-155.9150112,0.00023487,2]
[309814614,1704164960550,-155.05749334,0.00023487,2]
[309814615,1704164960569,-328.73382728,0.00023487,2]
[309814616,1704164960588,-663.93163578,0.00023487,2]
[309814617,1704164960608,-660.78085481,0.00023487,2]
[309814618,1704164960628,-162.05733397,0.00023487,2]
[309814619,1704164960647,-1037.2606634,0.00024,2]
[309814620,1704164960668,-200.0,0.00024294,7]
[309814621,1704164960689,-627.44383495,0.00024513,2]
[309814622,1704164960708,-197.04980058,0.00024513,2]
[309814623,1704164960728,-400.9882906,0.00024514,2]
[309814624,1704164960747,-6645.44245741,0.00024561,2]
[309814625,1704164960770,-261.2715888,0.0002466,2]
[309814626,1704164960790,-343.32706477,0.0002466,2]
[309814627,1704164960811,-178.40912131,0.00025,2]
[309814628,1704164960830,-154.86062544,0.00025,2]
[309814629,1704164960850,-4702.13843099,0.00025,2]
[309814630,1704164960870,-2999.6357671,0.00025,2]
[309814631,1704164960890,-524.83738866,0.00026,2]
[309814632,1704164960912,-193.4976863,0.00026301,2]
[309814633,1704164960933,-280.0,0.00026723,15]
[309814634,1704164960954,-155.75064648,0.00027,2]
[309814635,1704164960975,-555.15473275,0.00027499,2]
[309814636,1704164960995,-12400.96211397,0.000275,2]
[309814637,1704164961016,-1530.9193307,0.00027998,2]
[309814638,1704164961036,-305.17872531,0.00028,2]
[309814639,1704164961057,-157.05964581,0.0002828,2]
[309814640,1704164961077,-1720.70065648,0.00028472,2]
[309814641,1704164961097,-227.52275642,0.000289,2]
[309814642,1704164961117,-829.33057934,0.00029,2]
[309814643,1704164961138,-391.0,0.00029395,15]
[309814644,1704164961159,-322.44102787,0.0003,3]
[309814645,1704164961179,-170.13254358,0.0003,2]
[309814646,1704164961200,-405.0,0.0003,2]
[309814647,1704164961225,-155.0,0.00031,2]
[309814648,1704164961250,-526.569364,0.00031795,2]
[309814649,1704164961271,-16273.07116279,0.00032,10]
[309814650,1704164961291,-984.5444071,0.00032,2]
[309814651,1704164961312,-200.0,0.00032335,15]
[309814652,1704164961332,-348.0,0.00032335,15]
[309814653,1704164961352,-155.0,0.0003237,2]
[309814654,1704164961372,-153.0,0.00033,2]
[309814655,1704164961391,-155.0,0.0003374,2]
[309814656,1704164961412,-1000.0,0.00034,7]
[309814657,1704164961432,-242.918384,0.00035,4]
[309814658,1704164961452,-590.09569667,0.00035,2]
[309814659,1704164961472,-790.9739129,0.00035,4]
[309814660,1704164961491,-274.96302419,0.00035,4]
[309814661,1704164961511,-3537.57585844,0.00035,2]
[309814662,1704164961532,-155.20325427,0.00035,2]
[309814663,1704164961552,-155.0,0.0003511,2]
[309814664,1704164961572,-180.14054089,0.000355,14]
[309814665,1704164961593,-214.0,0.00035568,15]
[309814666,1704164961614,-323.0,0.00035589,2]
[309814667,1704164961635,-249.114299,0.00035616,120]
[309814668,1704164961656,-10591.94781756,0.00036,4]
[309814669,1704164961770,-1192.95254363,0.00022082,2]
[309814670,1704164961859,-3007.87750637,0.00036,4]
[309814671,1704164962118,-154.86062544,0.00022082,2]
[309814672,1704164962138,-154.86062544,0.00022082,2]
[309814673,1704164962158,-162.44234547,0.00022082,2]
[309814674,1704164962178,-12246.90179925,0.00036,4]
[309814675,1704164962199,-155.0,0.0003648,2]
[309814676,1704164962223,-695.05356033,0.00037187,2]
[309814677,1704164962249,-167.44749825,0.00037187,2]
[309814678,1704164962270,-405.06174807,0.00037187,2]
[309814679,1704164962292,-2762.8956447,0.00037187,2]
[309814680,1704164962313,-156.24644515,0.0003785,2]
[309814681,1704164962335,-629.61934637,0.00037952,2]
[309814682,1704164962355,-363.23875403,0.00038,30]
[309814683,1704164962376,-155.24695126,0.00038,7]
[309814684,1704164963312,160.83720431,0.00022082,2]
[309814685,1704164969029,268.4768647,0.00029997,2]
[309814686,1704164972100,1327.80962221,0.00025,2]
[309814688,1704164974697,844.54105753,0.00022084,2]
[309814740,1704165032047,-1245.01567087,0.00022084,2]
[309814741,1704165032057,-322.48939726,0.0003,3]
[309814742,1704165032066,-650.09622829,0.00034708,2]
[309814743,1704165032076,-621.50481141,0.00036444,2]
[309814744,1704165032085,-623.846267,0.00037575,2]
[309814745,1704165032095,-175.32417115,0.00037891,4]
[309814746,1704165032104,-907.84262121,0.00037891,4]
[309814747,1704165032113,-334.459013,0.00037892,120]
[309814748,1704165032122,-6452.59520008,0.00038871,4]
[309814749,1704165032131,-14071.2841564,0.00038871,4]
[309814750,1704165032141,-2722.84970841,0.00038872,4]
[309814752,1704165032150,-2729.02561864,0.00038872,4]
[309814753,1704165032159,-155.26173977,0.00038873,2]
[309814754,1704165032168,-329.36141902,0.00038873,4]
[309814756,1704165032178,-378.5929577,0.00038873,4]
[309814758,1704165032186,-155.6849062,0.00038873,4]
[309814760,1704165032195,-242.18796839,0.00038873,2]
[309814762,1704165032204,-238.6625714,0.00038873,2]
[309814764,1704165032214,-403.98760198,0.00038873,2]
[309814765,1704165032223,-467.32108935,0.00038874,4]
[309814766,1704165032233,-242.79110021,0.00038874,4]
[309814768,1704165032242,-164.39970915,0.00038874,2]
[309814770,1704165032251,-2111.39829087,0.00038874,4]
[309814772,1704165032264,-157.02883434,0.00038874,4]
[309814774,1704165032273,-287.21277325,0.00038875,4]
[309814776,1704165032282,-1118.34726076,0.00038876,4]
[309814778,1704165032290,-250.52940106,0.00038876,4]
[309814779,1704165032300,-373.0,0.00038877,2]
[309814781,1704165032309,-623.846267,0.00038966,2]
[309814783,1704165032318,-4932.2093368,0.00039,4]
[309814785,1704165032327,-1500.0,0.000397,2]
[309814787,1704165032336,-154.86062544,0.00039955,2]
[309814790,1704165032345,-2548.11,0.00039985,3]
[309814792,1704165032354,-4044.7511135,0.0003999,4]
[309814794,1704165032363,-154.86062544,0.00039994,4]
[309814796,1704165032372,-1000.0,0.00039994,7]
[309814798,1704165032381,-590.09569667,0.00039994,2]
[309814800,1704165032390,-216.09605185,0.00039994,2]
[309814802,1704165032400,-301.60889696,0.00039995,4]
[309814804,1704165032409,-154.97130112,0.00039995,4]
[309814806,1704165032418,-326.11849683,0.00039995,4]
[309814808,1704165032427,-18366.60107475,0.00039995,4]
[309814810,1704165032436,-355.45269779,0.00039996,4]
[309814812,1704165032445,-329.4274848,0.00039996,4]
[309814813,1704165032455,-239.88551339,0.00039996,4]
[309814815,1704165032464,-404.09283408,0.00039996,4]
[309814817,1704165032473,-417.31448423,0.00039996,4]
[309814819,1704165032482,-4016.4683794,0.00039996,4]
[309814821,1704165032491,-280.27079798,0.00039996,4]
[309814823,1704165032500,-340.5990909,0.00039996,7]
[309814825,1704165032509,-362.02458655,0.00039996,2]
[309814827,1704165032518,-556.23960539,0.00039996,4]
[309814829,1704165032528,-1247.11730776,0.00039996,4]
[309814831,1704165032537,-241.09763242,0.00039996,4]
[309814833,1704165032546,-218.25267146,0.00039996,4]
[309814834,1704165032555,-230.86210643,0.00039996,2]
[309814839,1704165032564,-9878.27865097,0.00039996,2]
[309814840,1704165032653,-364.66621379,0.00039996,4]
[309814841,1704165032663,-3932.10989251,0.00039996,4]
[309814842,1704165032672,-288.64103576,0.00039996,4]
[309814843,1704165032681,-5013.91502131,0.00039996,4]
[309814844,1704165032690,-245.33399454,0.00039996,2]
[309814845,1704165032699,-639.81950641,0.00039996,2]
[309814846,1704165032708,-168.85531125,0.00039996,4]
[309814847,1704165032717,-360.61884138,0.00039996,4]
[309814868,1704165038034,-1364.82709081,0.00037574,4]
[309814870,1704165038046,-17.39657869,0.00037574,4]
[309814872,1704165038055,-154.86062544,0.00037574,4]
[309814874,1704165038065,-705.01385766,0.00037574,4]
[309814876,1704165038074,-1602.81531774,0.00037574,4]
[309814878,1704165038083,-4016.4683794,0.00037574,4]
[309814880,1704165038092,-403.98760198,0.00037574,2]
[309814882,1704165038101,-6422.14225496,0.0003789,4]
[309814884,1704165038111,-694.13353506,0.00039996,4]
[309814886,1704165038120,-15963.71127767,0.00039996,4]
[309814888,1704165038129,-276.72462066,0.00039996,4]
[309814890,1704165038139,-87054.65192548,0.00039997,4]
[309814892,1704165038148,-160.45558927,0.00039997,2]
[309814894,1704165038157,-72699.34988218,0.00039998,2]
[309814896,1704165038166,-22304.8150058,0.0004,120]
[309814898,1704165038175,-185.5969086,0.0004,2]
[309814900,1704165038184,-160.11156552,0.0004,4]
[309814902,1704165038193,-332.999999,0.0004,120]
[309814904,1704165038202,-1873.48908347,0.0004009,2]
[309814906,1704165038211,-623.846267,0.00040356,2]
[309814908,1704165038222,-306.0,0.00040603,2]
[309814910,1704165038231,-306.0,0.00040693,2]
[309814912,1704165038240,-1500.0,0.000407,3]
[309814915,1704165038250,-153.0,0.00040727,2]
[309814917,1704165038259,-213.544295,0.00040881,2]
[309814919,1704165038273,-213.544295,0.00040881,2]
[309814920,1704165038282,-163.713886,0.00040881,2]
[309814923,1704165038291,-220.952035,0.00040881,2]
[309814924,1704165038300,-4872.72589613,0.00040923,10]
[309814926,1704165038310,-385.10928272,0.00041,2]
[309814929,1704165038319,-518.0,0.00041065,60]
[309814930,1704165038328,-518.0,0.00041075,60]
[309814933,1704165038338,-518.0,0.00041085,60]
[309814934,1704165038347,-92041.08429,0.00041093,4]
[309814936,1704165038356,-500.0,0.00041094,4]
[309814939,1704165038366,-500.0,0.00041094,4]
[309814940,1704165038375,-518.19487685,0.00041094,4]
[309814943,1704165038385,-500.0,0.00041094,4]
[309814944,1704165038393,-227.53446515,0.00041094,4]
[309814946,1704165038402,-232.34121036,0.00041094,4]
[309814948,1704165038412,-500.0,0.00041094,4]
[309814950,1704165038421,-500.0,0.00041094,4]
[309814952,1704165038429,-523.74010498,0.00041094,4]
[309814954,1704165038438,-500.0,0.00041094,4]
[309814956,1704165038448,-242.16181799,0.00041094,4]
[309814958,1704165038457,-328.33924732,0.00041094,4]
[309814960,1704165038466,-467.18382003,0.00041094,4]
[309814962,1704165038475,-500.0,0.00041095,7]
[309814964,1704165038484,-500.0,0.00041095,2]
[309814966,1704165038493,-1397.45,0.00041095,7]
[309814968,1704165038503,-500.0,0.00041095,7]
[309814970,1704165038512,-500.0,0.00041095,7]
[309814972,1704165038521,-639.94712464,0.00041095,7]
[309814974,1704165038530,-977.14,0.00041095,7]
[309814976,1704165038539,-500.0,0.00041095,7]
[309814979,1704165038552,-500.0,0.00041095,7]
[309814980,1704165038560,-607.07533651,0.00041095,7]
[309814982,1704165038570,-500.0,0.00041095,7]
[309814984,1704165038579,-500.0,0.00041095,7]
[309814986,1704165038589,-500.0,0.00041095,7]
[309814988,1704165038598,-500.0,0.00041095,7]
[309814990,1704165038609,-500.0,0.00041095,7]
[309814992,1704165038618,-501.40539649,0.00041095,7]
[309814994,1704165038627,-504.15467671,0.00041095,7]
[309814996,1704165038636,-500.0,0.00041095,7]
[309814998,1704165038646,-500.0,0.00041095,7]
[309815000,1704165038655,-500.0,0.00041095,7]
[309815002,1704165038665,-500.0,0.00041095,7]
[309815004,1704165038674,-500.0,0.00041095,7]
[309815006,1704165038683,-500.0,0.00041095,7]
[309815008,1704165038692,-500.0,0.00041095,7]
[309815010,1704165038701,-500.0,0.00041095,7]
[309815012,1704165038710,-856.35,0.00041095,7]
[309815014,1704165038719,-534.66263788,0.00041095,7]
[309815016,1704165038728,-221.21595368,0.00041095,7]
[309815018,1704165038737,-529.12493076,0.00041095,7]
[309815019,1704165038745,-3044.1,0.00041095,7]
[309815021,1704165038754,-774.48,0.00041095,7]
[309815023,1704165038763,-575.36,0.00041095,7]
[309815025,1704165038772,-900.14,0.00041095,7]
[309815027,1704165038780,-500.0,0.00041095,7]
[309815029,1704165038790,-500.0,0.00041095,7]
[309815031,1704165038799,-606.03,0.00041095,7]
[309815033,1704165038808,-165.78781241,0.00041095,7]
[309815035,1704165038817,-500.0,0.00041095,7]
[309815037,1704165038827,-500.0,0.00041095,7]
[309815039,1704165038836,-46633.72,0.00041095,3]
[309815041,1704165038845,-533.7215135,0.00041095,7]
[309815043,1704165038855,-500.0,0.00041095,7]
[309815045,1704165038864,-502.513825,0.00041095,7]
[309815047,1704165038873,-500.0,0.00041095,7]
[309815049,1704165038883,-184.13927043,0.00041095,7]
[309815051,1704165038893,-500.0,0.00041095,7]
[309815053,1704165038902,-500.0,0.00041095,7]
[309815055,1704165038912,-506.6352725,0.00041095,7]
[309815057,1704165038921,-504.39635893,0.00041095,7]
[309815059,1704165038930,-508.15597706,0.00041095,7]
[309815061,1704165038939,-500.0,0.00041095,7]
[309815063,1704165038949,-600.0018182,0.00041095,7]
[309815065,1704165038958,-500.0,0.00041095,7]
[309815067,1704165038967,-500.0,0.00041095,7]
[309815069,1704165038976,-500.0,0.00041095,7]
[309815070,1704165038985,-273.32975873,0.00041095,7]
[309815071,1704165038994,-629.33227677,0.00041095,7]
[309815072,1704165039002,-500.0,0.00041095,7]
[309815073,1704165039010,-500.0,0.00041095,7]
[309815074,1704165039019,-500.0,0.00041095,7]
[309815075,1704165039028,-500.0,0.00041095,7]
[309815076,1704165039036,-671.56,0.00041095,7]
[309815077,1704165039045,-510.12991902,0.00041095,7]
[309815078,1704165039054,-500.0,0.00041095,7]
[309815079,1704165039063,-3501.14,0.00041095,7]
[309815080,1704165039072,-8704.39,0.00041095,7]
[309815081,1704165039081,-500.0,0.00041095,7]
[309815083,1704165039091,-500.0,0.00041095,7]
[309815085,1704165039099,-150.0,0.00041095,7]
[309815087,1704165039108,-504.82124022,0.00041095,7]
[309815089,1704165039117,-500.0,0.00041095,7]
[309815091,1704165039126,-500.0,0.00041095,7]
[309815093,1704165039135,-500.0,0.00041095,7]
[309815095,1704165039144,-500.0,0.00041095,7]
[309815097,1704165039153,-500.68115597,0.00041095,7]
[309815099,1704165039162,-509.90108145,0.00041095,7]
[309815101,1704165039171,-500.0,0.00041095,7]
[309815103,1704165039180,-500.0,0.00041095,7]
[309815105,1704165039189,-503.16301792,0.00041095,7]
[309815107,1704165039198,-500.0,0.00041095,7]
[309815109,1704165039207,-500.0,0.00041095,7]
[309815111,1704165039216,-407.77351442,0.00041095,7]
[309815113,1704165039226,-500.0,0.00041095,7]
[309815115,1704165039235,-500.0,0.00041095,7]
[309815117,1704165039244,-514.24530831,0.00041095,7]
[309815119,1704165039254,-500.0,0.00041095,7]
[309815121,1704165039267,-500.0,0.00041095,7]
[309815123,1704165039275,-500.0,0.00041095,7]
[309815125,1704165039284,-500.70216579,0.00041095,7]
[309815127,1704165039294,-500.0,0.00041095,7]
[309815129,1704165039303,-500.0,0.00041095,7]
[309815131,1704165039313,-543.27081281,0.00041095,7]
[309815133,1704165039323,-500.0,0.00041095,7]
[309815135,1704165039333,-500.0,0.00041095,7]
[309815137,1704165039342,-604.99735244,0.00041095,7]
[309815139,1704165039352,-503.92146852,0.00041095,7]
[309815142,1704165039362,-504.31060641,0.00041095,2]
[309815144,1704165039371,-500.0,0.00041095,7]
[309815146,1704165039381,-500.0,0.00041095,7]
[309815155,1704165039459,-500.0,0.00041095,7]
[309815157,1704165039468,-500.0,0.00041095,7]